[Event "Early-Titled-Tuesday-Blitz-April-23-2024"]
[Site "Chess.com"]
[Date "2024.04.23"]
[Round "4"]
[White "Evgeny81"]
[Black "Anton_Demchenko"]
[Result "0-1"]
[WhiteElo "2794"]
[BlackElo "2979"]
[TimeControl "180+1"]
[EndTime "8:36:25 PDT"]
[Termination "Anton_Demchenko won by resignation"]

1. Nf3 {[%clk 0:03:00.9]} 1... Nf6 {[%clk 0:03:00.3]} 2. d4 {[%clk 0:03:01.1]}
2... d6 {[%clk 0:03:00.6]} 3. c4 {[%clk 0:03:01.3]} 3... Nc6 {[%clk 0:03:00.4]}
4. Nc3 {[%clk 0:03:01.2]} 4... e5 {[%clk 0:03:00.7]} 5. d5 {[%clk 0:03:00.3]}
5... Ne7 {[%clk 0:03:00.7]} 6. e4 {[%clk 0:03:00.6]} 6... Ng6 {[%clk 0:03:01.3]}
7. h3 {[%clk 0:02:54.8]} 7... Be7 {[%clk 0:03:01.3]} 8. Be3 {[%clk 0:02:55.3]}
8... Bd7 {[%clk 0:02:55.7]} 9. Qc2 {[%clk 0:02:53.4]} 9... c6 {[%clk 0:02:54.9]}
10. O-O-O {[%clk 0:02:53.6]} 10... cxd5 {[%clk 0:02:50.1]} 11. cxd5 {[%clk
0:02:53.4]} 11... O-O {[%clk 0:02:48.1]} 12. h4 {[%clk 0:02:50.2]} 12... Rc8
{[%clk 0:02:15.2]} 13. h5 {[%clk 0:02:34.7]} 13... Nf4 {[%clk 0:02:15.3]} 14. h6
{[%clk 0:02:27.7]} 14... g6 {[%clk 0:02:15.3]} 15. Kb1 {[%clk 0:02:07.8]} 15...
Nxe4 {[%clk 0:02:14.8]} 16. Bxf4 {[%clk 0:01:49]} 16... Nxc3+ {[%clk 0:02:09.2]}
17. bxc3 {[%clk 0:01:49.9]} 17... exf4 {[%clk 0:02:09.9]} 18. Nd4 {[%clk
0:01:44.1]} 18... Bf6 {[%clk 0:02:07.9]} 19. Be2 {[%clk 0:01:34.4]} 19... Qa5
{[%clk 0:02:03.7]} 20. Rd3 {[%clk 0:01:30.1]} 20... Bxd4 {[%clk 0:01:50]} 21.
Rxd4 {[%clk 0:01:29.8]} 21... Bf5 {[%clk 0:01:46.7]} 22. Bd3 {[%clk 0:01:30]}
22... Rxc3 {[%clk 0:01:47.2]} 0-1

[Event "Early-Titled-Tuesday-Blitz-April-23-2024"]
[Site "Chess.com"]
[Date "2024.04.23"]
[Round "4"]
[White "AsselLesbekova"]
[Black "Brave_spirit12"]
[Result "0-1"]
[WhiteElo "2439"]
[BlackElo "2713"]
[TimeControl "180+1"]
[EndTime "8:36:29 PDT"]
[Termination "Brave_spirit12 won by checkmate"]

1. e4 {[%clk 0:03:00.9]} 1... e6 {[%clk 0:02:59.1]} 2. d4 {[%clk 0:03:00.3]}
2... d5 {[%clk 0:02:59.7]} 3. Bd3 {[%clk 0:02:59.7]} 3... c5 {[%clk 0:02:49.7]}
4. exd5 {[%clk 0:02:55.4]} 4... Qxd5 {[%clk 0:02:48.5]} 5. Nf3 {[%clk
0:02:54.5]} 5... cxd4 {[%clk 0:02:48.5]} 6. O-O {[%clk 0:02:53.8]} 6... Nc6
{[%clk 0:02:48.2]} 7. Re1 {[%clk 0:02:50.4]} 7... Nf6 {[%clk 0:02:46.7]} 8. Nbd2
{[%clk 0:02:48]} 8... Bc5 {[%clk 0:02:45.9]} 9. Bc4 {[%clk 0:02:47.3]} 9... Qd6
{[%clk 0:02:43]} 10. Nb3 {[%clk 0:02:45.8]} 10... Bb6 {[%clk 0:02:42.4]} 11. Bb5
{[%clk 0:02:27]} 11... Bd7 {[%clk 0:02:37.9]} 12. c3 {[%clk 0:02:18.7]} 12... a6
{[%clk 0:02:30.1]} 13. Bf1 {[%clk 0:02:09.1]} 13... O-O-O {[%clk 0:02:23.2]} 14.
Nbxd4 {[%clk 0:01:58.8]} 14... Nxd4 {[%clk 0:02:22.1]} 15. cxd4 {[%clk
0:01:56.7]} 15... Bc6 {[%clk 0:02:18.3]} 16. Be3 {[%clk 0:01:49.8]} 16... Ng4
{[%clk 0:02:11.1]} 17. Qe2 {[%clk 0:00:59]} 17... Bxf3 {[%clk 0:02:04]} 18. Qxf3
{[%clk 0:00:57.9]} 18... Qxh2# {[%clk 0:02:03.6]} 0-1

[Event "Early-Titled-Tuesday-Blitz-April-23-2024"]
[Site "Chess.com"]
[Date "2024.04.23"]
[Round "4"]
[White "dianamirza"]
[Black "ImportedItalianMaple"]
[Result "0-1"]
[WhiteElo "1981"]
[BlackElo "2456"]
[TimeControl "180+1"]
[EndTime "8:36:33 PDT"]
[Termination "ImportedItalianMaple won by resignation"]

1. e4 {[%clk 0:02:44.7]} 1... g6 {[%clk 0:02:58.1]} 2. d4 {[%clk 0:02:41]} 2...
Bg7 {[%clk 0:02:57]} 3. c4 {[%clk 0:02:36]} 3... d6 {[%clk 0:02:56.8]} 4. Nc3
{[%clk 0:02:36.5]} 4... Nc6 {[%clk 0:02:57.1]} 5. Be3 {[%clk 0:02:35.2]} 5... e5
{[%clk 0:02:56.6]} 6. d5 {[%clk 0:02:34.8]} 6... Nd4 {[%clk 0:02:56.4]} 7. Bxd4
{[%clk 0:02:29]} 7... exd4 {[%clk 0:02:57.3]} 8. Nb5 {[%clk 0:02:25.9]} 8... Nf6
{[%clk 0:02:56.1]} 9. f3 {[%clk 0:02:16]} 9... Nh5 {[%clk 0:02:47.6]} 10. Ne2
{[%clk 0:01:43.7]} 10... f5 {[%clk 0:02:36.6]} 11. Nbxd4 {[%clk 0:01:06.6]}
11... fxe4 {[%clk 0:02:35.2]} 12. fxe4 {[%clk 0:01:05]} 12... Qh4+ {[%clk
0:02:31.1]} 13. Kd2 {[%clk 0:00:59.4]} 13... Qxe4 {[%clk 0:02:27.1]} 14. Kc1
{[%clk 0:00:53.5]} 14... Bh6+ {[%clk 0:02:26]} 15. Qd2 {[%clk 0:00:42.6]} 15...
Bxd2+ {[%clk 0:02:25.7]} 16. Kxd2 {[%clk 0:00:43.5]} 16... O-O {[%clk
0:02:25.7]} 0-1

[Event "Early-Titled-Tuesday-Blitz-April-23-2024"]
[Site "Chess.com"]
[Date "2024.04.23"]
[Round "4"]
[White "DarZay"]
[Black "jup1978"]
[Result "1-0"]
[WhiteElo "2315"]
[BlackElo "2502"]
[TimeControl "180+1"]
[EndTime "8:36:45 PDT"]
[Termination "DarZay won by resignation"]

1. e4 {[%clk 0:02:54.6]} 1... c5 {[%clk 0:02:58.1]} 2. Nf3 {[%clk 0:02:51.8]}
2... d6 {[%clk 0:02:58.4]} 3. d4 {[%clk 0:02:48.6]} 3... cxd4 {[%clk 0:02:59.3]}
4. Nxd4 {[%clk 0:02:44.3]} 4... Nf6 {[%clk 0:02:59.9]} 5. Nc3 {[%clk 0:02:42]}
5... Nc6 {[%clk 0:03:00.3]} 6. Bc4 {[%clk 0:02:39.8]} 6... Qb6 {[%clk
0:02:58.1]} 7. Nb3 {[%clk 0:02:33.3]} 7... e6 {[%clk 0:02:58.2]} 8. Be3 {[%clk
0:02:32.7]} 8... Qc7 {[%clk 0:02:58.6]} 9. O-O {[%clk 0:02:31.5]} 9... a6 {[%clk
0:02:59]} 10. a4 {[%clk 0:02:31]} 10... Be7 {[%clk 0:02:59.3]} 11. f4 {[%clk
0:02:30.3]} 11... b6 {[%clk 0:02:51.4]} 12. Nd2 {[%clk 0:02:18.2]} 12... Bb7
{[%clk 0:02:42.2]} 13. Bb3 {[%clk 0:02:13.7]} 13... Na5 {[%clk 0:02:41.5]} 14.
Qf3 {[%clk 0:02:10.4]} 14... Nxb3 {[%clk 0:02:39.6]} 15. cxb3 {[%clk 0:02:08.8]}
15... O-O {[%clk 0:02:39.2]} 16. h3 {[%clk 0:02:07.4]} 16... Qd7 {[%clk
0:02:29.4]} 17. Bxb6 {[%clk 0:02:04.5]} 17... Rab8 {[%clk 0:02:26.6]} 18. a5
{[%clk 0:02:02.9]} 18... Qc6 {[%clk 0:02:22.2]} 19. Qe2 {[%clk 0:01:59.4]} 19...
Nd7 {[%clk 0:02:18.7]} 20. Be3 {[%clk 0:01:54.1]} 20... Bf6 {[%clk 0:02:07.5]}
21. Rac1 {[%clk 0:01:50.1]} 21... Bxc3 {[%clk 0:02:05.6]} 22. Rxc3 {[%clk
0:01:43.5]} 22... Qb5 {[%clk 0:02:01.9]} 23. Qxb5 {[%clk 0:01:42.9]} 23... axb5
{[%clk 0:02:02.3]} 24. Rc7 {[%clk 0:01:42.3]} 24... Nf6 {[%clk 0:01:59.8]} 25.
Ba7 {[%clk 0:01:40.6]} 25... Ba6 {[%clk 0:01:45.2]} 26. Bxb8 {[%clk 0:01:38.7]}
26... Rxb8 {[%clk 0:01:46.1]} 27. b4 {[%clk 0:01:37.4]} 27... g6 {[%clk
0:01:40.2]} 28. Rc6 {[%clk 0:01:36.8]} 28... Bb7 {[%clk 0:01:39.3]} 29. Rb6
{[%clk 0:01:37.1]} 29... Kf8 {[%clk 0:01:36.6]} 30. a6 {[%clk 0:01:36.1]} 1-0

[Event "Early-Titled-Tuesday-Blitz-April-23-2024"]
[Site "Chess.com"]
[Date "2024.04.23"]
[Round "4"]
[White "inagreV"]
[Black "Journey_to_GrandMaster_YT"]
[Result "1-0"]
[WhiteElo "2382"]
[BlackElo "2541"]
[TimeControl "180+1"]
[EndTime "8:36:46 PDT"]
[Termination "inagreV won by resignation"]

1. e4 {[%clk 0:03:00.9]} 1... d6 {[%clk 0:03:00.9]} 2. d4 {[%clk 0:03:00.2]}
2... Nf6 {[%clk 0:03:00.7]} 3. Nc3 {[%clk 0:02:59.8]} 3... e5 {[%clk 0:03:01.3]}
4. Nf3 {[%clk 0:02:52.7]} 4... Nbd7 {[%clk 0:03:01.5]} 5. Bc4 {[%clk 0:02:51.8]}
5... Be7 {[%clk 0:03:00.7]} 6. O-O {[%clk 0:02:51.5]} 6... O-O {[%clk
0:03:00.6]} 7. Re1 {[%clk 0:02:50]} 7... c6 {[%clk 0:03:00.9]} 8. a4 {[%clk
0:02:50]} 8... a5 {[%clk 0:03:00.9]} 9. h3 {[%clk 0:02:48.3]} 9... Nb6 {[%clk
0:03:01.1]} 10. Bb3 {[%clk 0:02:45.9]} 10... Nfd7 {[%clk 0:03:01.2]} 11. Be3
{[%clk 0:02:33.9]} 11... exd4 {[%clk 0:03:01.3]} 12. Nxd4 {[%clk 0:02:34.8]}
12... Nc5 {[%clk 0:03:02]} 13. Qf3 {[%clk 0:02:33.6]} 13... Nxb3 {[%clk
0:03:00.9]} 14. cxb3 {[%clk 0:02:34.5]} 14... Nd7 {[%clk 0:03:00.3]} 15. Rad1
{[%clk 0:02:31.7]} 15... Qc7 {[%clk 0:02:49.3]} 16. Nf5 {[%clk 0:02:30.3]} 16...
Ne5 {[%clk 0:02:34.5]} 17. Qg3 {[%clk 0:02:30.3]} 17... Bxf5 {[%clk 0:02:34.2]}
18. exf5 {[%clk 0:02:29.4]} 18... Rad8 {[%clk 0:02:29.8]} 19. Bd4 {[%clk
0:02:15.7]} 19... f6 {[%clk 0:02:22]} 20. Ne2 {[%clk 0:02:10.8]} 20... d5 {[%clk
0:02:12.7]} 21. Nf4 {[%clk 0:02:07.5]} 21... Bd6 {[%clk 0:02:01.5]} 22. Ne6
{[%clk 0:02:03.8]} 22... Qd7 {[%clk 0:02:00]} 23. f4 {[%clk 0:01:56.7]} 23...
Rde8 {[%clk 0:01:42.6]} 24. fxe5 {[%clk 0:01:56.2]} 24... fxe5 {[%clk
0:01:41.1]} 25. Nxf8 {[%clk 0:01:54.3]} 25... Kxf8 {[%clk 0:01:25.9]} 26. Bxe5
{[%clk 0:01:53.2]} 26... Bb4 {[%clk 0:01:23.8]} 27. Qxg7+ {[%clk 0:01:44.7]} 1-0

[Event "Early-Titled-Tuesday-Blitz-April-23-2024"]
[Site "Chess.com"]
[Date "2024.04.23"]
[Round "4"]
[White "esrosenberg"]
[Black "Ramu_K_FM_FT"]
[Result "1-0"]
[WhiteElo "2327"]
[BlackElo "2114"]
[TimeControl "180+1"]
[EndTime "8:36:50 PDT"]
[Termination "esrosenberg won by checkmate"]

1. e4 {[%clk 0:03:00.9]} 1... c5 {[%clk 0:02:58.5]} 2. Nc3 {[%clk 0:02:59.9]}
2... d6 {[%clk 0:02:57.1]} 3. f4 {[%clk 0:02:59.6]} 3... g6 {[%clk 0:02:56.5]}
4. Nf3 {[%clk 0:02:59.3]} 4... Bg7 {[%clk 0:02:57.2]} 5. Bb5+ {[%clk 0:02:58]}
5... Nd7 {[%clk 0:02:54.9]} 6. a4 {[%clk 0:02:53.7]} 6... a6 {[%clk 0:02:54.9]}
7. Bxd7+ {[%clk 0:02:50.8]} 7... Bxd7 {[%clk 0:02:55.8]} 8. d3 {[%clk
0:02:50.4]} 8... Rb8 {[%clk 0:02:51.2]} 9. O-O {[%clk 0:02:49.1]} 9... b5 {[%clk
0:02:51.4]} 10. axb5 {[%clk 0:02:48.2]} 10... axb5 {[%clk 0:02:52.3]} 11. Qe1
{[%clk 0:02:47.7]} 11... b4 {[%clk 0:02:52.4]} 12. Ne2 {[%clk 0:02:44.3]} 12...
Nf6 {[%clk 0:02:51.4]} 13. Qh4 {[%clk 0:02:40.2]} 13... Qb6 {[%clk 0:02:42.5]}
14. f5 {[%clk 0:02:29.9]} 14... h6 {[%clk 0:02:32]} 15. fxg6 {[%clk 0:02:18.1]}
15... fxg6 {[%clk 0:02:32.9]} 16. Kh1 {[%clk 0:02:06.1]} 16... g5 {[%clk
0:02:30.4]} 17. Nxg5 {[%clk 0:01:44.3]} 17... hxg5 {[%clk 0:02:28.7]} 18. Qxg5
{[%clk 0:01:45.2]} 18... Kf7 {[%clk 0:01:34.8]} 19. Nf4 {[%clk 0:01:36.3]} 19...
Rbg8 {[%clk 0:01:30.6]} 20. Qg6+ {[%clk 0:01:25.4]} 20... Kf8 {[%clk 0:01:30.1]}
21. Ra8+ {[%clk 0:01:24.8]} 21... Be8 {[%clk 0:01:24.5]} 22. Ne6# {[%clk
0:01:23.3]} 1-0

[Event "Early-Titled-Tuesday-Blitz-April-23-2024"]
[Site "Chess.com"]
[Date "2024.04.23"]
[Round "4"]
[White "ozates"]
[Black "Chesstiger64"]
[Result "1-0"]
[WhiteElo "2547"]
[BlackElo "2342"]
[TimeControl "180+1"]
[EndTime "8:36:59 PDT"]
[Termination "ozates won by resignation"]

1. e4 {[%clk 0:03:00.9]} 1... c5 {[%clk 0:02:59]} 2. Nf3 {[%clk 0:02:58.6]} 2...
e6 {[%clk 0:02:59.3]} 3. b3 {[%clk 0:02:57]} 3... d5 {[%clk 0:02:56.8]} 4. d3
{[%clk 0:02:47]} 4... dxe4 {[%clk 0:02:53.3]} 5. dxe4 {[%clk 0:02:45]} 5...
Qxd1+ {[%clk 0:02:53.7]} 6. Kxd1 {[%clk 0:02:45.9]} 6... Nf6 {[%clk 0:02:50.8]}
7. Bd3 {[%clk 0:02:42.9]} 7... Nc6 {[%clk 0:02:48.7]} 8. Bb2 {[%clk 0:02:40.3]}
8... Bd6 {[%clk 0:02:43.3]} 9. e5 {[%clk 0:02:39.6]} 9... Ke7 {[%clk 0:02:38.2]}
10. exd6+ {[%clk 0:02:39]} 10... Kxd6 {[%clk 0:02:38.1]} 11. Nc3 {[%clk
0:02:37.9]} 11... e5 {[%clk 0:02:36.9]} 12. Ne4+ {[%clk 0:02:37.2]} 12... Nxe4
{[%clk 0:02:35.9]} 13. Bxe4 {[%clk 0:02:38.1]} 13... Bg4 {[%clk 0:02:35.7]} 14.
h3 {[%clk 0:02:36]} 14... Bxf3+ {[%clk 0:02:35.2]} 15. Bxf3 {[%clk 0:02:36.2]}
15... f6 {[%clk 0:02:35.8]} 16. Bxc6 {[%clk 0:02:32.2]} 16... Kxc6 {[%clk
0:02:35.6]} 17. Ke2 {[%clk 0:02:33.1]} 17... a5 {[%clk 0:02:33.6]} 18. Rhd1
{[%clk 0:02:34]} 18... a4 {[%clk 0:02:33.4]} 19. a3 {[%clk 0:02:28.1]} 19...
axb3 {[%clk 0:02:32.8]} 20. cxb3 {[%clk 0:02:28.3]} 20... b5 {[%clk 0:02:33.4]}
21. Rdc1 {[%clk 0:02:26.5]} 21... Kb6 {[%clk 0:02:32.5]} 22. a4 {[%clk
0:02:26.8]} 22... bxa4 {[%clk 0:02:32]} 23. Rxa4 {[%clk 0:02:27.7]} 23... Rxa4
{[%clk 0:02:25.6]} 24. bxa4 {[%clk 0:02:28.3]} 24... Ra8 {[%clk 0:02:24.4]} 25.
Rc4 {[%clk 0:02:28.1]} 25... Kc6 {[%clk 0:02:22.7]} 26. Kd3 {[%clk 0:02:24.8]}
26... Kd5 {[%clk 0:02:20.2]} 27. f3 {[%clk 0:02:24.8]} 27... Rb8 {[%clk
0:02:17.6]} 28. Bc3 {[%clk 0:02:24.4]} 28... Rb3 {[%clk 0:02:11.1]} 29. a5
{[%clk 0:02:23.1]} 29... Ra3 {[%clk 0:02:11]} 30. Re4 {[%clk 0:02:19]} 30... g6
{[%clk 0:02:08.1]} 31. Re1 {[%clk 0:02:18.8]} 31... c4+ {[%clk 0:02:06.3]} 32.
Kd2 {[%clk 0:02:14.9]} 32... Ra2+ {[%clk 0:02:06.2]} 33. Ke3 {[%clk 0:02:15]}
33... f5 {[%clk 0:01:54.6]} 34. Rd1+ {[%clk 0:02:06]} 34... Ke6 {[%clk
0:01:54.7]} 35. f4 {[%clk 0:02:04.1]} 35... exf4+ {[%clk 0:01:30.9]} 36. Kxf4
{[%clk 0:02:01.2]} 36... Rxg2 {[%clk 0:01:31.3]} 37. Ra1 {[%clk 0:02:00.3]}
37... Rf2+ {[%clk 0:01:28.9]} 38. Ke3 {[%clk 0:01:59.9]} 38... Rc2 {[%clk
0:01:25.8]} 39. Kd4 {[%clk 0:02:00.1]} 39... Kd7 {[%clk 0:01:24.5]} 40. a6
{[%clk 0:01:59.6]} 40... Kc6 {[%clk 0:01:21.7]} 41. a7 {[%clk 0:01:59.8]} 41...
Kb7 {[%clk 0:01:22.3]} 42. a8=Q+ {[%clk 0:01:59.9]} 1-0

[Event "Early-Titled-Tuesday-Blitz-April-23-2024"]
[Site "Chess.com"]
[Date "2024.04.23"]
[Round "4"]
[White "osielchesslover2011"]
[Black "mortngabriel"]
[Result "1-0"]
[WhiteElo "2209"]
[BlackElo "2464"]
[TimeControl "180+1"]
[EndTime "8:37:03 PDT"]
[Termination "osielchesslover2011 won by checkmate"]

1. e4 {[%clk 0:02:58.4]} 1... e5 {[%clk 0:02:59.6]} 2. Nf3 {[%clk 0:02:58.8]}
2... Nc6 {[%clk 0:02:59.6]} 3. Bb5 {[%clk 0:02:58.6]} 3... a6 {[%clk 0:02:59.7]}
4. Ba4 {[%clk 0:02:58.6]} 4... Nf6 {[%clk 0:02:59.6]} 5. O-O {[%clk 0:02:57.7]}
5... Be7 {[%clk 0:02:59.7]} 6. Re1 {[%clk 0:02:57.7]} 6... b5 {[%clk 0:03:00.2]}
7. Bb3 {[%clk 0:02:57.7]} 7... d6 {[%clk 0:03:00.8]} 8. c3 {[%clk 0:02:57.4]}
8... O-O {[%clk 0:03:00.4]} 9. h3 {[%clk 0:02:57.6]} 9... Nb8 {[%clk 0:03:00.5]}
10. d4 {[%clk 0:02:57.5]} 10... Nbd7 {[%clk 0:03:01.1]} 11. Nbd2 {[%clk
0:02:57.2]} 11... Bb7 {[%clk 0:03:01.5]} 12. Bc2 {[%clk 0:02:55.3]} 12... Re8
{[%clk 0:03:01.8]} 13. Nf1 {[%clk 0:02:55]} 13... Bf8 {[%clk 0:02:55.3]} 14. Ng3
{[%clk 0:02:54.8]} 14... g6 {[%clk 0:02:55.6]} 15. Bg5 {[%clk 0:02:53.5]} 15...
h6 {[%clk 0:02:55.3]} 16. Be3 {[%clk 0:02:53.4]} 16... Bg7 {[%clk 0:02:55]} 17.
Qd2 {[%clk 0:02:53.2]} 17... Kh7 {[%clk 0:02:55.3]} 18. Rad1 {[%clk 0:02:52.7]}
18... c6 {[%clk 0:01:59.5]} 19. dxe5 {[%clk 0:02:30.6]} 19... dxe5 {[%clk
0:01:51.7]} 20. Nh4 {[%clk 0:02:24.2]} 20... Qc7 {[%clk 0:01:15.4]} 21. Nhf5
{[%clk 0:02:13.1]} 21... gxf5 {[%clk 0:01:14]} 22. Nxf5 {[%clk 0:02:14]} 22...
Nf8 {[%clk 0:00:43.4]} 23. Bxh6 {[%clk 0:02:08.3]} 23... Ne6 {[%clk 0:00:37.6]}
24. Bxg7 {[%clk 0:02:07.3]} 24... Nxg7 {[%clk 0:00:37.7]} 25. Qh6+ {[%clk
0:02:07.8]} 25... Kg8 {[%clk 0:00:35.3]} 26. Qxg7# {[%clk 0:02:08.7]} 1-0

[Event "Early-Titled-Tuesday-Blitz-April-23-2024"]
[Site "Chess.com"]
[Date "2024.04.23"]
[Round "4"]
[White "Lady_Nika"]
[Black "x-7171385435"]
[Result "0-1"]
[WhiteElo "2455"]
[BlackElo "2152"]
[TimeControl "180+1"]
[EndTime "8:37:04 PDT"]
[Termination "x-7171385435 won by checkmate"]

1. g4 {[%clk 0:03:00.9]} 1... d5 {[%clk 0:02:49.1]} 2. h3 {[%clk 0:03:00.4]}
2... e5 {[%clk 0:02:48.7]} 3. d3 {[%clk 0:02:59.5]} 3... Nc6 {[%clk 0:02:44]} 4.
Bg2 {[%clk 0:02:59.5]} 4... Be6 {[%clk 0:02:44.2]} 5. e4 {[%clk 0:02:59.7]} 5...
d4 {[%clk 0:02:43.9]} 6. Ne2 {[%clk 0:02:59]} 6... Qd7 {[%clk 0:02:43.9]} 7. c3
{[%clk 0:02:58.3]} 7... O-O-O {[%clk 0:02:43.4]} 8. c4 {[%clk 0:02:56.9]} 8...
h5 {[%clk 0:02:40.4]} 9. g5 {[%clk 0:02:55.8]} 9... h4 {[%clk 0:02:41]} 10. a3
{[%clk 0:02:54.6]} 10... f6 {[%clk 0:02:38.3]} 11. f4 {[%clk 0:02:49.9]} 11...
exf4 {[%clk 0:02:35.7]} 12. Bxf4 {[%clk 0:02:49.3]} 12... fxg5 {[%clk
0:02:35.7]} 13. Bxg5 {[%clk 0:02:49.5]} 13... Be7 {[%clk 0:02:36]} 14. Bxe7
{[%clk 0:02:44.4]} 14... Ngxe7 {[%clk 0:02:36.9]} 15. Nd2 {[%clk 0:02:44.7]}
15... Rdf8 {[%clk 0:02:26.6]} 16. Nf3 {[%clk 0:02:44.4]} 16... Ng6 {[%clk
0:02:19.6]} 17. Qd2 {[%clk 0:02:42.4]} 17... Nge5 {[%clk 0:02:10.5]} 18. Ng5
{[%clk 0:02:38.9]} 18... Bxc4 {[%clk 0:01:47.2]} 19. dxc4 {[%clk 0:02:20.3]}
19... Nxc4 {[%clk 0:01:46.8]} 20. Qd3 {[%clk 0:02:13.7]} 20... Ne3 {[%clk
0:01:41.1]} 21. Rg1 {[%clk 0:02:03.5]} 21... Ne5 {[%clk 0:01:33.5]} 22. Qb3
{[%clk 0:01:59.3]} 22... d3 {[%clk 0:01:26.7]} 23. Ne6 {[%clk 0:01:47.6]} 23...
d2# {[%clk 0:00:55.9]} 0-1

[Event "Early-Titled-Tuesday-Blitz-April-23-2024"]
[Site "Chess.com"]
[Date "2024.04.23"]
[Round "4"]
[White "KetiTsatsalashvili"]
[Black "Alexei_Gubajdullin"]
[Result "0-1"]
[WhiteElo "2417"]
[BlackElo "2624"]
[TimeControl "180+1"]
[EndTime "8:37:05 PDT"]
[Termination "Alexei_Gubajdullin won by resignation"]

1. d4 {[%clk 0:03:00.9]} 1... Nf6 {[%clk 0:02:59.5]} 2. Bf4 {[%clk 0:03:00]}
2... g6 {[%clk 0:02:59.5]} 3. e3 {[%clk 0:03:00.2]} 3... Bg7 {[%clk 0:03:00]} 4.
Nf3 {[%clk 0:03:00.9]} 4... O-O {[%clk 0:03:00.5]} 5. h3 {[%clk 0:03:01.5]} 5...
d6 {[%clk 0:03:01.1]} 6. Be2 {[%clk 0:03:01.7]} 6... Nc6 {[%clk 0:03:01.3]} 7.
g4 {[%clk 0:03:00.8]} 7... e5 {[%clk 0:03:00.6]} 8. Bg3 {[%clk 0:02:54.6]} 8...
Ne4 {[%clk 0:03:00.1]} 9. Bh4 {[%clk 0:02:48.6]} 9... g5 {[%clk 0:02:58.4]} 10.
Bg3 {[%clk 0:02:48.8]} 10... Nxg3 {[%clk 0:02:57.7]} 11. fxg3 {[%clk 0:02:49.7]}
11... exd4 {[%clk 0:02:57.6]} 12. exd4 {[%clk 0:02:48.6]} 12... f5 {[%clk
0:02:55.8]} 13. Nc3 {[%clk 0:02:38.4]} 13... fxg4 {[%clk 0:02:52.3]} 14. Bc4+
{[%clk 0:02:38.4]} 14... Kh8 {[%clk 0:02:52]} 15. hxg4 {[%clk 0:02:38.7]} 15...
Bxg4 {[%clk 0:02:51.1]} 16. Qd3 {[%clk 0:02:31.6]} 16... Bf5 {[%clk 0:02:49.4]}
17. Qd2 {[%clk 0:02:27.7]} 17... Qe7+ {[%clk 0:02:48.3]} 18. Ne2 {[%clk
0:02:25.4]} 18... Be4 {[%clk 0:02:41.9]} 19. Bd3 {[%clk 0:02:16.8]} 19... Rxf3
{[%clk 0:02:39.3]} 20. O-O-O {[%clk 0:02:12.9]} 20... Bxd3 {[%clk 0:02:37.8]}
21. cxd3 {[%clk 0:02:13.2]} 21... Rf2 {[%clk 0:02:38]} 22. Rde1 {[%clk
0:02:13.1]} 22... Qf7 {[%clk 0:02:35.1]} 23. Qxg5 {[%clk 0:02:06.4]} 23... Qxa2
{[%clk 0:02:22.7]} 24. Qg6 {[%clk 0:01:38.3]} 24... Qa1+ {[%clk 0:02:19.2]} 25.
Kc2 {[%clk 0:01:25.2]} 25... Rxe2+ {[%clk 0:02:18.9]} 26. Rxe2 {[%clk
0:01:06.7]} 26... Nxd4+ {[%clk 0:02:17.3]} 27. Kc3 {[%clk 0:00:36.6]} 27...
Nxe2+ {[%clk 0:02:16.7]} 28. Kb3 {[%clk 0:00:37.3]} 28... Qxh1 {[%clk
0:02:15.8]} 0-1

[Event "Early-Titled-Tuesday-Blitz-April-23-2024"]
[Site "Chess.com"]
[Date "2024.04.23"]
[Round "4"]
[White "crescentmoon2411"]
[Black "Iskusnyh"]
[Result "0-1"]
[WhiteElo "2884"]
[BlackElo "2637"]
[TimeControl "180+1"]
[EndTime "8:37:12 PDT"]
[Termination "Iskusnyh won by resignation"]

1. d4 {[%clk 0:02:53.1]} 1... d5 {[%clk 0:02:59.4]} 2. c4 {[%clk 0:02:53.2]}
2... c6 {[%clk 0:02:58.9]} 3. Nc3 {[%clk 0:02:54.1]} 3... Nf6 {[%clk 0:02:58.9]}
4. Nf3 {[%clk 0:02:54.2]} 4... e6 {[%clk 0:02:58.2]} 5. Qc2 {[%clk 0:02:53.7]}
5... c5 {[%clk 0:02:23]} 6. g4 {[%clk 0:02:54.6]} 6... cxd4 {[%clk 0:02:10.5]}
7. Nxd4 {[%clk 0:02:55.5]} 7... Nc6 {[%clk 0:02:11]} 8. Nxc6 {[%clk 0:02:55.4]}
8... bxc6 {[%clk 0:02:11.9]} 9. g5 {[%clk 0:02:56.2]} 9... Nd7 {[%clk 0:02:10]}
10. h4 {[%clk 0:02:56.1]} 10... Ne5 {[%clk 0:01:51.6]} 11. cxd5 {[%clk
0:02:54.5]} 11... cxd5 {[%clk 0:01:51.4]} 12. Bg2 {[%clk 0:02:54.8]} 12... Bd7
{[%clk 0:01:46.2]} 13. Bf4 {[%clk 0:02:54.5]} 13... Bd6 {[%clk 0:01:40.9]} 14.
e3 {[%clk 0:02:53.3]} 14... Qb6 {[%clk 0:01:30.8]} 15. O-O {[%clk 0:02:53.2]}
15... Rc8 {[%clk 0:01:25]} 16. Qb3 {[%clk 0:02:52.7]} 16... Nc4 {[%clk
0:01:20.9]} 17. Qxb6 {[%clk 0:02:51.4]} 17... axb6 {[%clk 0:01:20.3]} 18. Bxd6
{[%clk 0:02:52.3]} 18... Nxd6 {[%clk 0:01:20.1]} 19. Rfc1 {[%clk 0:02:52.1]}
19... Ke7 {[%clk 0:01:19.5]} 20. f4 {[%clk 0:02:51.2]} 20... Nc4 {[%clk
0:01:17.5]} 21. e4 {[%clk 0:02:50]} 21... d4 {[%clk 0:01:12.4]} 22. Nd1 {[%clk
0:02:49.7]} 22... e5 {[%clk 0:01:00.1]} 23. f5 {[%clk 0:02:47.8]} 23... f6
{[%clk 0:00:58.6]} 24. Kf2 {[%clk 0:02:46.9]} 24... Rc5 {[%clk 0:00:40.6]} 25.
b3 {[%clk 0:02:44.3]} 25... Na3 {[%clk 0:00:40.1]} 26. Nb2 {[%clk 0:02:44.1]}
26... Rhc8 {[%clk 0:00:34.5]} 27. Nd3 {[%clk 0:02:44.1]} 27... Rc2+ {[%clk
0:00:29.1]} 28. Kf3 {[%clk 0:02:44.1]} 28... R8c3 {[%clk 0:00:27.6]} 29. Bf1
{[%clk 0:02:43.6]} 29... Bb5 {[%clk 0:00:22.2]} 30. Rxc2 {[%clk 0:02:41.5]}
30... Nxc2 {[%clk 0:00:21.7]} 0-1